{"text_format":"1","workbook":"xlsx","n_sheets":9,"sheets":["КРУЭ К-134","База_списки","База_примечания","Данные","Предустановки_параметров_ф","Предуст_катушки_ВНА","Предуст_испыт_выводы_C","схемы","Картинки"],"not_rendered":{"charts":0,"images":22,"macros":1,"external_links":0,"defined_names":112,"comments":0,"pivot_tables":0},"unopened":[],"bounds":{"document_bytes":16777216,"sheet_cells":100000,"rows_first":2000,"rows_last":500,"rows_between":2000,"halvings":0,"cell_chars":16384,"cell_head_chars":4096},"cells_cut":0,"cells_raw":0,"read":"whole","date_system":"1900"}

{"sheet":"КРУЭ К-134","index":0,"n_rows":66,"n_cols":11,"rows_kept":66,"cut":false,"hidden":false,"merged":[[1,1,3,7],[55,1,55,4],[54,1,54,4],[59,1,61,10],[44,7,57,10],[45,4,45,5],[46,4,46,5],[46,1,46,3],[45,1,45,3],[49,1,51,2],[9,9,9,10],[5,9,5,10],[8,9,8,10],[4,1,5,3],[8,1,8,3],[4,4,5,8],[13,7,18,7],[13,8,18,8],[10,1,10,3],[9,1,9,3],[10,4,10,8],[9,4,9,8],[26,2,26,6],[25,2,25,6],[13,1,13,4],[14,1,14,4],[15,1,15,4],[16,1,16,4],[13,9,18,9],[13,10,18,10],[17,1,17,4],[41,2,41,6],[57,1,57,4],[23,2,23,6],[22,2,22,6],[18,1,18,4],[21,2,21,6],[20,2,20,6],[30,2,30,6],[24,2,24,6],[27,2,27,6],[28,2,28,6],[29,2,29,6],[42,1,42,10],[47,1,47,5],[63,3,63,4],[63,6,63,8],[31,2,31,6],[39,2,39,6],[38,2,38,6],[37,2,37,6],[36,2,36,6],[35,2,35,6],[34,2,34,6],[33,2,33,6],[32,2,32,6],[40,7,40,10],[41,7,41,10],[40,2,40,6],[6,9,6,10],[7,1,7,3],[7,4,7,8],[7,9,7,10],[11,1,11,3],[11,4,11,8],[8,4,8,8],[6,1,6,3],[6,4,6,8]]}
[]
[null,"ОПРОСНЫЙ ЛИСТ для заказа КРУЭ К-134 (моноблочное исполнение)"]
[]
[]
[null,"Наименование проекта (объекта):"]
[null,null,null,null,null,null,null,null,null,"+7 (495) 787-43-59, +7 (499) 406-02-00"]
[null,"Адрес проекта:",null,null,null,null,null,null,null,"www.moselectroshield.ru"]
[null,"Заказчик:",null,null,null,null,null,null,null,"info@moselectro.ru"]
[null,"Адрес:",null,null,null,null,null,null,null,"Заводской номер проекта:"]
[null,"Контактное лицо:"]
[null,"Телефон:",null,null,null,null,null,null,null,"Номер ОЛ:",1]
[null,"E-mail:",null,null,null,null,null,null,null,"Всего ОЛ по проекту:",1]
[]
[null,"Количество КРУЭ (моноблоков):",null,null,null,2]
[null,"Номинальное напряжение:",null,null,null,"10 кВ"]
[null,"Наибольшее рабочее напряжение:",null,null,null,"12 кВ"]
[null,"Частота: ",null,null,null,"50 Гц"]
[null,"Номинальный ток сборных шин:  ",null,null,null,"630 А"]
[null,"Возможность расширения:",null,null,null,"Нет"]
[]
[null,"№","Номер функциональной части",null,null,null,null,1,2,3,4]
[null,1,"Наименование функциональной части",null,null,null,null,"C","C","V","C"]
[null,{"$f":"B22+1","v":2},"Наименование присоединения",null,null,null,null,"ВВ (Ввод)  ","ЛВН (Линия)  ","Тр-р № 1","СВН \n(Секционный ВН)"]
[null,{"$f":"B23+1","v":3},"Тип аппарата",null,null,null,null,"Выключатель нагрузки","Выключатель нагрузки","Вакуумный выключатель","Выключатель нагрузки"]
[null,4,"Тип привода аппарата",null,null,null,null,"Моторный AC220V/DC220V","Ручной","Ручной","Моторный AC220V/DC220V"]
[null,5,"Катушка включения",null,null,null,null,"AC220V/DC220V","-","AC220V/DC220V","AC220V/DC220V"]
[null,6,"Катушка отключения",null,null,null,null,"AC220V/DC220V","-","DC3V","AC220V/DC220V"]
[null,7,"Независимый расцепитель (вторая катушка отключения)",null,null,null,null,"-","-","AC220V/DC220V","-"]
[null,8,"Контакт сигнализации аварийного отключения (для ф.V)",null,null,null,null,"-","-","Да","-"]
[null,9,"Контакты положения коммутационных аппаратов",null,null,null,null,"Да","Да","Да","Да"]
[null,10,"Тип привода разъединителя-заземлителя",null,null,null,null,"-","-","Ручной","-"]
[null,11,"Микропроцессорная РЗА (для ф.V)",null,null,null,null,"-","-","БЭМП РУ-АП.5.0.0.УХЛ 3.1","-"]
[null,12,"Индикатор наличия напряжения",null,null,null,null,"ИН 3-10-022","ИН 3-10-022","ИН 3-10-022","ИН 3-10-022"]
[null,13,"Указатель тока короткого замыкания (для ф.C)",null,null,null,null,"А-Сигнал КЛ","А-Сигнал КЛ","-","Нет"]
[null,14,"Трансформатор тока для РЗА (для ф.V)",null,null,null,null,"-","-","ТП-ЭК-0,66 М10АКАП2-180-10Р/10-200/5","-"]
[null,15,"Навесные замки для оперативных блокировок",null,null,null,null,"Да","Да","Да","Да"]
[null,16,"Выводы для испытания кабелей (для ф.С)",null,null,null,null,"Да","Да","-","Да"]
[null,17,"Обогрев приводов (~220В, 50Вт)",null,null,null,null,"Да","Нет","Нет","Да"]
[null,18,"Обогрев релейного отсека (~220В, 50Вт)",null,null,null,null,"Нет","Нет","Нет","Нет"]
[null,19,"Освещение релейного отсека (~220В)",null,null,null,null,"Да","Нет","Нет","Нет"]
[null,20,"Датчик давления элегаза:",null,null,null,null,"Без доп. контактов"]
[null,21,"Тип оперативного питания:",null,null,null,null,"220DC"]
[]
[null,null,null,null,null,null,null,"Примечания:"]
[null,"Система телемеханики: "]
[null,"Наличие / объем работ",null,null,"Нет"]
[null,"Тип модуля ТМ",null,null,"---------------------"]
[]
[]
[null,"Сервис:",null,"Шеф-монтаж, шеф-наладка",null,"Нет"]
[null,null,null,"Расширенная гарантия",null,"Нет"]
[null,null,null,"Контракт на тех.обслуживание",null,"Нет"]
[]
[null,"Стандартный перечень ЗИП:",null,null,null,"Кол-во"]
[null,"Прибор для фазировки кабелей",null,null,null,1]
[null,"Ручка управления (всегда в комплекте)",null,null,null,1]
[]
[null,"Дополнительные запасные части и принадлежности:",null,null,null,"Нет"]
[]
[]
[]
[]
[]
[null,null,"Заполнил:",null,null,"Должность:",null,null,null,"Телефон:"]
[]
[null,null,null,null,null,null,null,{"$f":"IF(H22=\"-\",\"\",Данные!G30)","v":"C_кр_левМ"},{"$f":"IF(I22=\"-\",\"\",Данные!G31)","v":"C_центр"},{"$f":"IF(J22=\"-\",\"\",Данные!G32)","v":"V_центр"},{"$f":"IF(K22=\"-\",\"\",Данные!G33)","v":"C_кр_правМ"}]

{"sheet":"База_списки","index":1,"n_rows":17,"n_cols":50,"rows_kept":17,"cut":false,"hidden":true,"merged":[[0,46,0,47],[0,48,0,49],[0,34,0,35],[0,37,0,38],[0,40,0,41],[0,44,0,45],[0,10,0,11],[0,12,0,13],[0,14,0,15],[0,16,0,17],[0,18,0,19],[0,31,0,32],[0,20,0,21],[0,22,0,23],[0,26,0,27],[0,28,0,29],[0,24,0,25]]}
["СПИСОК ПАРАМЕТРОВ:",null,"Напряжение","Наибольшее рабочее напряжение:","Частота","Ток СШ","Датчик_элегаза","Расширение","Опер ток","Функция","Наименование присоединения",null,"Тип аппарата",null,"Тип привода аппарата",null,"Катушка включения",null,"Катушка отключения",null,"Независимый расцепитель",null,"Контакт сигнализации авар откл",null,"Контакты положения коммутац аппаратов",null,"тип привода разъед-заземл",null,"МП РЗА",null,"признак","Индикатор напряжения",null,"признак","УТКЗ",null,"признак","Трансформаторы тока",null,"признак","Навесные замки ОБ",null,"Испытательные выводы",{"$f":"IF(COUNTIF('КРУЭ К-134'!37:37,\"Да\")>0,\"Да\",\"Нет\")","v":"Да"},"Обогрев привода аппарата",null,"Обогрев релейного отсека",null,"Освещение релейного отсека"]
["Напряжение",null,"6 кВ","7,2 кВ","50 Гц","630 А","С доп. контактами","Нет","220DC","C","V","Тр-р № 1","V","Вакуумный выключатель","V|Вакуумный выключатель","Ручной","Выключатель нагрузки|Ручной","-","Выключатель нагрузки|Ручной","-","Выключатель нагрузки","-","Выключатель нагрузки","-","-","-","Выключатель нагрузки","-","Выключатель нагрузки","-",null,"-","-",null,"-","-",null,"-","-",null,"-","-","-","-","-","-","-","-","-","-"]
["Наибольшее раб напряжение",null,"10 кВ","12 кВ","60 Гц",null,"Без доп. контактов","Вправо","220AC","V","V","Тр-р № 2","C","Выключатель нагрузки","V|Вакуумный выключатель","Моторный AC220V/DC220V","-|-","-","-|-","-","-","-","-","-","Вакуумный выключатель","Да","-","-","-","-",null,"Вакуумный выключатель","Нет","Типовой","Вакуумный выключатель","-",null,"Выключатель нагрузки","-",null,"C","Да","C_Нет","Да","C","Да","C","Да","C","Да"]
["Частота",null,"20 кВ","24 кВ",null,null,null,"Влево","Нет","-","V","СВ","-","-","C|Выключатель нагрузки","Ручной","Вакуумный выключатель|Ручной","AC220V/DC220V","Вакуумный выключатель|Ручной","AC220V/DC220V","Вакуумный выключатель","AC220V/DC220V","Вакуумный выключатель","Да","Выключатель нагрузки","Да","Вакуумный выключатель","Ручной","Вакуумный выключатель","БЭМП РУ-АП.5.0.0.УХЛ 3.1","Типовой","Вакуумный выключатель","ИН 3-10-022","Типовой","Выключатель нагрузки","Нет","Типовой","Вакуумный выключатель","Нет","Типовой","V","Да","C_Нет","Нет","C","Нет","C","Нет","C","Нет"]
["Ток СШ",null,null,null,null,null,null,"Вправо и влево",null,null,"V","ВВ (Ввод)  ",null,null,"C|Выключатель нагрузки","Моторный AC220V/DC220V","Вакуумный выключатель|Ручной","Нет","Вакуумный выключатель|Ручной","DC3V","Вакуумный выключатель","Нет","Вакуумный выключатель","Нет",null,null,null,null,"Вакуумный выключатель","БЭМП РУ-АП2.5.220.Д","Типовой","Вакуумный выключатель","Другое","Типовой","Выключатель нагрузки","А-Сигнал КЛ","Типовой","Вакуумный выключатель","ТП-ЭК-0,66 М10АКАП2-180-10Р/10-200/5","Типовой",null,null,"C_Да","Да","V","Да","V","Да","V","Да"]
["Датчик_элегаза",null,null,null,null,null,null,null,null,null,"V","ЛВН (Линия)  ",null,null,"-|-","-","Вакуумный выключатель|Моторный AC220V/DC220V","AC220V/DC220V","Вакуумный выключатель|Ручной","Нет",null,null,null,null,null,null,null,null,"Вакуумный выключатель","Другое","Типовой","Выключатель нагрузки","Нет","Типовой","Выключатель нагрузки","А-Сигнал К1","Типовой","Вакуумный выключатель","ТП-ЭК-0,66 М10АКАП2-180-10Р/10-300/5","Типовой",null,null,"V_Нет","-","V","Нет","V","Нет","V","Нет"]
["Опер ток",null,null,null,null,null,null,null,null,null,"C","ВВ (Ввод)  ",null,null,null,null,"Вакуумный выключатель|Моторный AC220V/DC220V","Нет","Вакуумный выключатель|Моторный AC220V/DC220V","AC220V/DC220V",null,null,null,null,null,null,null,null,null,null,null,"Выключатель нагрузки","ИН 3-10-022","Типовой","Выключатель нагрузки","А-Сигнал +","Типовой","Вакуумный выключатель","ТП-ЭК-0,66 М10АКАП2-180-10Р/10-400/5","Типовой",null,null,"V_Да","-"]
["Расширение",null,null,null,null,null,null,null,null,null,"C","ЛВН (Линия)  ",null,null,null,null,"Выключатель нагрузки|Моторный AC220V/DC220V","AC220V/DC220V","Вакуумный выключатель|Моторный AC220V/DC220V","DC3V",null,null,null,null,null,null,null,null,null,null,null,"Выключатель нагрузки","Другое","Типовой","Выключатель нагрузки","А-Сигнал +2","Типовой","Вакуумный выключатель","ТП-ЭК-0,66 М10АКАП2-180-10Р/10-600/5","Типовой"]
["Функция",null,null,null,null,null,null,null,null,null,"C","ШР \n(Шинный разъед.)",null,null,null,null,"Выключатель нагрузки|Моторный AC220V/DC220V","Нет","Вакуумный выключатель|Моторный AC220V/DC220V","Нет",null,null,null,null,null,null,null,null,null,null,null,null,null,null,"Выключатель нагрузки","Элько-Н","Типовой","Вакуумный выключатель","ТП-ЭК-0,66 М10ААП2-180-10Р/10-200/5","Типовой"]
["Наименование присоединения",null,null,null,null,null,null,null,null,null,"C","ШВН \n(Шинный ВН)",null,null,null,null,null,null,"Выключатель нагрузки|Моторный AC220V/DC220V","AC220V/DC220V",null,null,null,null,null,null,null,null,null,null,null,null,null,null,"Выключатель нагрузки","Другое","Типовой","Вакуумный выключатель","ТП-ЭК-0,66 М10ААП2-180-10Р/10-300/5","Типовой"]
["Тип аппарата",null,null,null,null,null,null,null,null,null,"C","СВН \n(Секционный ВН)",null,null,null,null,null,null,"Выключатель нагрузки|Моторный AC220V/DC220V","Нет",null,null,null,null,null,null,null,null,null,null,null,null,null,null,null,null,null,"Вакуумный выключатель","ТП-ЭК-0,66 М10ААП2-180-10Р/10-400/5","Типовой"]
["Тип привода аппарата",null,null,null,null,null,null,null,null,null,"-","-",null,null,null,null,null,null,null,null,null,null,null,null,null,null,null,null,null,null,null,null,null,null,null,null,null,"Вакуумный выключатель","ТП-ЭК-0,66 М10ААП2-180-10Р/10-600/5","Типовой"]
[null,null,null,null,null,null,null,null,null,null,null,null,null,null,null,null,null,null,null,null,null,null,null,null,null,null,null,null,null,null,null,null,null,null,null,null,null,"Вакуумный выключатель","ТШЛ-0,66-VIII-1 -10Р/10-200/5","Типовой"]
[null,null,null,null,null,null,null,null,null,null,null,null,null,null,null,null,null,null,null,null,null,null,null,null,null,null,null,null,null,null,null,null,null,null,null,null,null,"Вакуумный выключатель","ТШЛ-0,66-VIII-1 -10Р/10-300/5","Типовой"]
[null,null,null,null,null,null,null,null,null,null,null,null,null,null,null,null,null,null,null,null,null,null,null,null,null,null,null,null,null,null,null,null,null,null,null,null,null,"Вакуумный выключатель","ТШЛ-0,66-VIII-1 -10Р/10-400/5","Типовой"]
[null,null,null,null,null,null,null,null,null,null,null,null,null,null,null,null,null,null,null,null,null,null,null,null,null,null,null,null,null,null,null,null,null,null,null,null,null,"Вакуумный выключатель","ТШЛ-0,66-VIII-1 -10Р/10-600/5","Типовой"]
[null,null,null,null,null,null,null,null,null,null,null,null,null,null,null,null,null,null,null,null,null,null,null,null,null,null,null,null,null,null,null,null,null,null,null,null,null,"Вакуумный выключатель","Другое","Типовой"]

{"sheet":"База_примечания","index":2,"n_rows":2,"n_cols":2,"rows_kept":2,"cut":false,"hidden":true,"merged":[]}
["Другое","* Возможность изготовления может быть подтверждена только после анализа опросного листа техническими специалистами ООО \"МЭЩ\"."]
["Система_ТМ","В подготовку входит: место для установки модуля ТМ, вывод сигналов ТИ, ТУ, ТС в отдельный клеммник (по согласованной схеме)."]

{"sheet":"Данные","index":3,"n_rows":64,"n_cols":25,"rows_kept":64,"cut":false,"hidden":true,"merged":[]}
[null,null,"Катушки","Тип привода  выключателя:","Напряжение","Наибольшее рабочее напряжение:","Частота","Ток","Расширение","Функция","Присоединение","да/нет",null,"Индикатор наличия напряжения:","Указатель тока короткого замыкания (для функции C):","ТТ",null,"Опер ток",null,"Микропроцессорная РЗА",null,null,null,"Условия оплаты","Доставка"]
["Ручной","AC220V/DC220V","AC220V/DC220V","ручной","6 кВ","7,2 кВ","50 Гц",630,"Нет","C","Тр-р № 1","Да","С доп. контактами","ИН 3-10-022","А-Сигнал КЛ","ТП-ЭК-0,66 М10АКАП2-180-10Р/10-200/5","Да","220DC","Нет","БЭМП РУ-АП.5.0.0.УХЛ 3.1","Подготовка под установку модуля ТМ",null,null,"50% аванс, 50% после поставки","Самовывоз"]
["-","Нет","Нет","Моторный AC220V/DC220V","10 кВ","12 кВ","60 Гц","Нестандартный","Вправо","V","Тр-р № 2","Нет","Без доп. контактов","-","А-Сигнал К1","ТП-ЭК-0,66 М10АКАП2-180-10Р/10-300/5","Нет","220AC","ЩСН","БЭМП РУ-АП2.5.220.Д","Установка и монтаж модуля ТМ",null,null,"30% аванс, 70% после поставки","Доставка"]
[null,null,"DC3V",null,"20 кВ","24 кВ",null,null,"Влево","-","СВ",null,null,"Другое**","А-Сигнал +","ТП-ЭК-0,66 М10АКАП2-180-10Р/10-400/5",null,"Нет","ШОТ","-","Нет"]
[null,null,null,null,null,null,null,null,"Вправо и влево",null,"ВВ (Ввод)  ",null,null,null,"А-Сигнал +2","ТП-ЭК-0,66 М10АКАП2-180-10Р/10-600/5",null,null,"ИБП","Другое**"]
[null,null,null,null,null,null,null,null,null,null,"ЛВН (Линия)  ",null,null,null,"Элько-Н","ТП-ЭК-0,66 М10ААП2-180-10Р/10-200/5"]
[null,null,null,null,null,null,null,null,null,null,"ШР \n(Шинный разъед.)",null,null,null,"Другое**","ТП-ЭК-0,66 М10ААП2-180-10Р/10-300/5"]
[null,null,null,null,null,null,null,null,null,null,"ШВН \n(Шинный ВН)",null,null,null,"-","ТП-ЭК-0,66 М10ААП2-180-10Р/10-400/5"]
[null,null,null,null,null,null,null,null,null,null,"СВН \n(Секционный ВН)",null,null,null,null,"ТП-ЭК-0,66 М10ААП2-180-10Р/10-600/5"]
[null,null,null,null,null,null,null,null,null,null,null,null,null,null,null,"ТШЛ-0,66-VIII-1 -10Р/10-200/5"]
[null,null,null,null,null,null,null,null,null,null,null,null,null,null,null,"ТШЛ-0,66-VIII-1 -10Р/10-300/5"]
[null,null,null,null,null,null,null,null,null,"V","Тр-р № 1",null,null,null,null,"ТШЛ-0,66-VIII-1 -10Р/10-400/5"]
[null,null,null,null,null,null,null,null,null,"V","Тр-р № 2",null,null,null,null,"ТШЛ-0,66-VIII-1 -10Р/10-600/5"]
[null,null,null,null,null,null,null,null,null,"V","СВ",null,null,null,null,"Другое**"]
[null,null,null,null,null,null,null,null,null,"V","ВВ (Ввод)  ",null,null,null,null,"Нет"]
[null,null,null,null,null,null,null,null,null,"V","ЛВН (Линия)  "]
[null,null,null,null,null,null,null,null,null,"C","ВВ (Ввод)  "]
[null,null,null,null,null,null,null,null,null,"C","ЛВН (Линия)  "]
["Название схемы",null,null,null,null,null,null,null,null,"C","ШР \n(Шинный разъед.)"]
[null,null,null,null,null,null,null,null,null,"C","ШВН \n(Шинный ВН)"]
["Функция","тип.","с рашир.","с мотор.",null,null,null,null,null,"C","СВН \n(Секционный ВН)"]
["C","кр_лев","кр_левР","кр_левМ"]
["V","кр_прав","кр_правР","кр_правМ"]
[null,"центр",null,"центрМ"]
[null,null,null,"кр_левРМ"]
[null,null,null,"кр_правРМ"]
[]
[]
[null,null,null,null,null,".png"]
["Функция1",{"$f":"'КРУЭ К-134'!H22","v":"C"},"_кр_лев",{"$f":"IF(OR(ВД_парам_расширение_моноблока=Данные!I4,ВД_парам_расширение_моноблока=Данные!I5),\"Р\",\"\")","v":""},{"$f":"IF(AND(OR('КРУЭ К-134'!H22=Данные!J2,'КРУЭ К-134'!H22=Данные!J3),'КРУЭ К-134'!H25=Данные!D3),\"М\",\"\")","v":"М"},null,{"$f":"_xlfn.CONCAT(B30:F30)","v":"C_кр_левМ"}]
["Функция2",{"$f":"'КРУЭ К-134'!I22","v":"C"},{"$f":"IF('КРУЭ К-134'!J22=\"-\",\"_кр_прав\",\"_центр\")","v":"_центр"},{"$f":"IF(AND('КРУЭ К-134'!I22<>\"-\",C31<>\"_центр\"),IF(OR(ВД_парам_расширение_моноблока=Данные!I3,ВД_парам_расширение_моноблока=Данные!I5),\"Р\",\"\"),\"\")","v":""},{"$f":"IF(AND(OR('КРУЭ К-134'!I22=Данные!J2,'КРУЭ К-134'!I22=Данные!J3),'КРУЭ К-134'!I25=Данные!D3),\"М\",\"\")","v":""},null,{"$f":"_xlfn.CONCAT(B31:F31)","v":"C_центр"}]
["Функция3",{"$f":"'КРУЭ К-134'!J22","v":"V"},{"$f":"IF('КРУЭ К-134'!K22=\"-\",\"_кр_прав\",\"_центр\")","v":"_центр"},{"$f":"IF(AND('КРУЭ К-134'!I22<>\"-\",C32<>\"_центр\"),IF(OR(ВД_парам_расширение_моноблока=Данные!I3,ВД_парам_расширение_моноблока=Данные!I5),\"Р\",\"\"),\"\")","v":""},{"$f":"IF(AND(OR('КРУЭ К-134'!J22=Данные!J2,'КРУЭ К-134'!J22=Данные!J3),'КРУЭ К-134'!J25=Данные!D3),\"М\",\"\")","v":""},null,"V_центр"]
["Функция4",{"$f":"'КРУЭ К-134'!K22","v":"C"},"_кр_прав",{"$f":"IF(OR('КРУЭ К-134'!F19=Данные!I3,'КРУЭ К-134'!F19=Данные!I5),\"Р\",\"\")","v":""},{"$f":"IF(AND(OR('КРУЭ К-134'!K22=Данные!J2,'КРУЭ К-134'!K22=Данные!J3),'КРУЭ К-134'!K25=Данные!D3),\"М\",\"\")","v":"М"},null,"C_кр_правМ"]
[]
[]
[]
[]
[]
[]
[]
[]
[]
[]
[]
[]
[]
[]
[]
[]
[]
[null,"Трансформатор","Артикул",null,null,"Индикатор_U","Артикул","полное",null,"МПУ","Артикул","Полное наименование",null,null,"Указатель_Iкз","Артикул","Полное","примечание"]
[null,"ТП-ЭК-0,66 М10АКАП2-180-10Р/10-200/5",1029015306,null,null,"ИН 3-10-022",1008002034,"Блок индикации ИН 3-10-022 (L=0.35м)",null,"БЭМП РУ-АП.5.0.0.УХЛ 3.1",1026026215,"МБ РЗиА БЭМП РУ-АП.5.0.0.УХЛ 3.1",null,null,"А-Сигнал КЛ",1013009420]
[null,"ТП-ЭК-0,66 М10АКАП2-180-10Р/10-300/5","Нет кода",null,null,null,null,null,null,"БЭМП РУ-АП2.5.220.Д",1026026215,null,null,null,"А-Сигнал К1",1013009420,"Монитор электрической сети А-Сигнал К-1*"]
[null,"ТП-ЭК-0,66 М10АКАП2-180-10Р/10-400/5","Нет кода",null,null,null,null,null,null,null,null,null,null,null,"А-Сигнал +","Нет кода","Монитор электрической сети А-Сигнал КЛ + Датчик тока ДТ-ПР-100"]
[null,"ТП-ЭК-0,66 М10АКАП2-180-10Р/10-600/5","Нет кода",null,null,null,null,null,null,null,null,null,null,null,"А-Сигнал +2","Нет кода"]
[null,"ТП-ЭК-0,66 М10ААП2-180-10Р/10-200/5","Нет кода"]
[null,"ТП-ЭК-0,66 М10ААП2-180-10Р/10-300/5","Нет кода"]
[null,"ТП-ЭК-0,66 М10ААП2-180-10Р/10-400/5","Нет кода"]
[null,"ТП-ЭК-0,66 М10ААП2-180-10Р/10-600/5","Нет кода"]
[null,"ТШЛ-0,66-VIII-1 -10Р/10-200/5","Нет кода"]
[null,"ТШЛ-0,66-VIII-1 -10Р/10-300/5","Нет кода"]
[null,"ТШЛ-0,66-VIII-1 -10Р/10-400/5","Нет кода"]
[null,"ТШЛ-0,66-VIII-1 -10Р/10-600/5","Нет кода"]
[null,"Нет","Не выбран ТТ"]

{"sheet":"Предустановки_параметров_ф","index":4,"n_rows":20,"n_cols":4,"rows_kept":20,"cut":false,"hidden":true,"merged":[]}
["Имя_диапазона"]
["ВД_парам_ф_наименование_функциональной_части","-","C","V"]
["ВД_парам_ф_наименование_присоединения","-"]
["ВД_парам_ф_тип_аппарата","-","Выключатель нагрузки","Вакуумный выключатель"]
["ВД_парам_ф_тип_привода_аппарата","-"]
["ВД_парам_ф_катушка_включения","-","-","AC220V/DC220V"]
["ВД_парам_ф_катушка_отключения","-","-","DC3V"]
["ВД_парам_ф_независимый_расцепитель","-","-","AC220V/DC220V"]
["ВД_парам_ф_конт_сигн_авар_откл","-","-"]
["ВД_парам_ф_контакты_полож_аппаратов","-","Да","Да"]
["ВД_парам_ф_тип_привода_разъединителя","-","-","Ручной"]
["ВД_парам_ф_мпрза","-","-"]
["ВД_парам_ф_индикатор_напряжения","-"]
["ВД_парам_ф_уткз","-",null,"-"]
["ВД_парам_ф_ТТ","-","-"]
["ВД_парам_ф_навесные_замки_ОБ","-","Да","Да"]
["ВД_парам_ф_выводы_испытания_кабелей","-",null,"-"]
["ВД_парам_ф_обогрев_приводов","-"]
["ВД_парам_ф_обогрев_релейного_отсека","-"]
["ВД_парам_ф_освещение_релейного_отсека","-"]

{"sheet":"Предуст_катушки_ВНА","index":5,"n_rows":4,"n_cols":3,"rows_kept":4,"cut":false,"hidden":true,"merged":[]}
["Имя_диапазона"]
["ВД_парам_ф_тип_привода_аппарата","Ручной","Моторный AC220V/DC220V"]
["ВД_парам_ф_катушка_включения","-","AC220V/DC220V"]
["ВД_парам_ф_катушка_отключения","-","AC220V/DC220V"]

{"sheet":"Предуст_испыт_выводы_C","index":6,"n_rows":3,"n_cols":2,"rows_kept":3,"cut":false,"hidden":true,"merged":[]}
["Имя_диапазона"]
["ВД_парам_ф_наименование_функциональной_части","C"]
["ВД_парам_ф_выводы_испытания_кабелей","Да"]

{"sheet":"схемы","index":7,"n_rows":1,"n_cols":4,"rows_kept":1,"cut":false,"hidden":true,"merged":[[6,0,11,0]]}
["Имя:","V_центрМ","Файл:","C_кр_левР.png"]

{"sheet":"Картинки","index":8,"n_rows":6,"n_cols":1,"rows_kept":6,"cut":false,"hidden":true,"merged":[]}
["C_кр_лев"]
["C_кр_прав"]
["C_центр"]
["V_кр_лев"]
["V_кр_прав"]
["V_центр"]